bitfinex/quotes_ETHUSD_20251107
["timestamp","ask_amount","ask_price","bid_price","bid_amount"]
[1762526406443,0.1757612,3206.5,3204.4,1.259712]
[1762526406444,3.11951171,3205.7,3204.4,3.58041328]
[1762526406641,3.11859667,3206.6,3203.8,3.30794494]
[1762526406642,0.002,3205.1,3204.6,0.405504]
[1762526406814,0.002,3205.1,3205.0,4.7853408]
[1762526407036,0.4979,3208.5,3205.5,0.405504]
[1762526407265,3.27886203,3208.4,3206.4,3.11868416]
[1762526407558,3.1173072,3207.9,3205.6,0.4598]
[1762526407855,1.259712,3208.1,3204.1,1.259712]
[1762526408057,1.259712,3207.3,3204.1,1.259712]
[1762526408240,1.757612,3208.0,3204.5,1.259712]
[1762526408440,0.37685635,3208.2,3205.7,3.11944349]
[1762526408618,0.16196999,3208.6,3205.8,0.92701638]
[1762526408811,0.4979,3208.2,3205.9,0.4598]
[1762526409043,3.11759061,3207.7,3206.3,3.11884982]
[1762526409211,0.4979,3208.2,3206.0,0.405504]
[1762526409428,1.259712,3207.9,3205.9,0.4598]
[1762526409741,3.11734731,3207.1,3205.9,0.4598]
[1762526409951,3.11881513,3206.4,3205.3,0.4598]
[1762526410268,3.11881513,3206.4,3203.9,3.12110399]
[1762526410269,0.31173473,3207.0,3204.0,6.15072026]
[1762526410413,0.31173473,3207.0,3203.8,0.1867]
[1762526410414,0.4979,3206.9,3204.1,0.4598]
[1762526410613,1.757612,3206.9,3204.1,0.4598]
[1762526410938,0.1822,3207.4,3205.5,3.11956011]
[1762526411144,0.4979,3207.3,3204.7,1.665216]
[1762526411453,3.11798453,3207.2,3204.9,0.405504]
[1762526411626,0.4979,3207.3,3204.8,1.24139363]
[1762526411958,0.1822,3207.4,3205.9,3.11915181]
[1762526412168,0.1822,3207.4,3205.3,3.11976933]
[1762526412169,0.6801,3207.9,3205.1,0.405504]
[1762526412476,0.6801,3207.9,3206.0,3.52461659]
[1762526412477,0.1822,3207.9,3206.0,3.52461659]
[1762526412625,3.11614244,3209.1,3207.8,3.11736786]
[1762526412817,0.1133,3209.2,3207.6,0.6595]
[1762526413014,0.6112,3209.2,3208.0,3.11719028]
[1762526413226,3.11660996,3208.7,3206.7,3.1184707]
[1762526413426,0.6112,3209.2,3206.8,0.405504]
[1762526413657,0.6112,3209.2,3207.0,0.405504]
[1762526413887,0.6112,3209.2,3206.9,0.405504]
[1762526414247,0.4979,3209.9,3207.3,0.405504]
[1762526414560,3.61328411,3209.9,3207.5,0.405504]
[1762526414712,0.36132841,3209.8,3207.7,0.405504]
[1762526414912,0.4979,3209.8,3207.7,0.405504]
[1762526415140,0.0954,3210.1,3208.8,3.11635696]
[1762526415341,0.1552,3208.8,3208.2,0.1552]
[1762526415555,0.1552,3208.8,3208.3,3.11690269]
[1762526415873,0.48935994,3210.7,3208.5,1.259712]
[1762526416156,0.48935994,3210.7,3208.8,6.15072026]
[1762526416358,3.11443667,3210.9,3209.1,1.665216]
[1762526416656,0.4979,3211.4,3209.2,0.405504]
[1762526416954,3.11447184,3210.9,3209.3,0.405504]
[1762526417161,3.11484788,3210.5,3208.7,0.405504]
[1762526417368,0.4979,3211.2,3208.7,0.405504]
[1762526417514,3.31034627,3211.3,3208.8,3.9816537]
[1762526417762,0.1963,3211.3,3209.6,3.11556945]
[1762526418108,0.1963,3211.3,3208.9,0.405504]
[1762526418109,0.4979,3211.2,3208.9,0.4598]
[1762526418315,1.259712,3211.0,3208.6,0.865304]
[1762526418613,0.43739096,3210.9,3208.7,0.405504]
[1762526418760,3.1143916,3210.9,3209.1,3.11610046]
[1762526418967,3.11518826,3210.1,3208.3,0.52691027]
[1762526419274,3.1145856,3210.7,3208.3,0.6595]
[1762526419477,3.1144886,3210.8,3208.3,0.6595]
[1762526419788,3.11586656,3209.4,3208.2,3.57678032]
[1762526419995,3.61181663,3211.4,3208.4,4.78203435]
[1762526420161,3.11357884,3211.8,3208.5,0.405504]
[1762526420162,0.4979,3211.2,3208.5,0.405504]
[1762526420362,0.4979,3211.2,3208.7,0.405504]
[1762526420363,1.259712,3211.1,3208.7,0.405504]
[1762526420560,1.259712,3211.1,3208.6,0.47820344]
[1762526420561,0.4979,3211.2,3208.6,0.405504]
[1762526420805,0.4979,3211.1,3208.8,0.405504]
[1762526421110,0.4979,3211.2,3209.0,0.405504]
[1762526421450,3.11641638,3208.9,3208.0,0.4598]
[1762526421745,0.31164164,3208.8,3207.5,0.4598]
[1762526421953,3.11702894,3208.2,3206.9,0.4598]
[1762526422105,0.6112,3208.7,3206.9,0.4598]
[1762526422444,3.11662407,3208.6,3206.9,0.4598]
[1762526422624,0.6112,3208.7,3206.9,0.4598]
[1762526422817,3.1167212,3208.5,3206.3,0.6595]
[1762526423132,0.1388,3206.4,3204.6,0.4598]
[1762526423334,3.1190084,3206.2,3204.7,3.1516079]
[1762526423515,3.1189326,3206.3,3204.7,0.4598]
[1762526423716,0.32577326,3206.2,3204.7,0.81782734]
[1762526423949,0.1388,3207.0,3204.8,0.03120319]
[1762526424102,0.4979,3206.6,3204.8,0.4598]
[1762526424442,6.15072026,3208.5,3204.8,0.4598]
[1762526424645,0.4979,3208.1,3205.7,6.15072026]
[1762526424857,0.4979,3208.1,3207.0,0.001]
[1762526425014,3.11720698,3208.0,3207.0,0.001]
[1762526425216,3.11761091,3207.6,3207.0,0.001]
[1762526425527,0.3615107,3207.9,3207.0,0.001]
[1762526425730,0.4979,3208.6,3207.0,0.001]
[1762526425953,0.1552,3207.4,3207.0,0.001]
[1762526426109,3.11529406,3210.0,3207.0,0.001]
[1762526426110,3.11774908,3207.5,3207.0,0.001]
[1762526426309,0.6112,3208.7,3207.0,0.001]
[1762526426502,0.4979,3208.6,3207.0,0.001]
[1762526426721,1.373012,3208.7,3207.0,0.49198178]
[1762526426722,0.1133,3208.7,3207.0,0.49198178]
[1762526426945,0.1133,3208.7,3207.6,3.1175063]
[1762526427146,0.1133,3208.7,3207.0,0.4608]
[1762526427351,0.6112,3209.2,3207.1,0.4598]
[1762526427674,3.11535331,3210.0,3207.1,0.4598]
[1762526427675,0.4979,3210.0,3207.5,3.1176929]
[1762526427865,0.4979,3210.0,3207.9,0.405504]
[1762526428158,3.11526687,3210.0,3208.1,3.11703692]
[1762526428305,0.1388,3210.1,3208.2,0.4598]
[1762526428747,1.259712,3210.0,3208.2,0.4598]
[1762526429047,0.6367,3210.1,3208.4,3.11679312]
[1762526429218,3.11575239,3209.5,3208.4,3.11679312]
[1762526429422,0.31157524,3209.5,3208.5,3.1167158]
[1762526429636,0.6367,3210.1,3208.3,0.4598]
[1762526429807,0.4979,3210.0,3208.4,0.03116818]
[1762526430010,3.11613389,3209.2,3207.9,1.0]
[1762526430252,3.1158789,3209.4,3207.9,1.0]
[1762526430454,3.11594428,3209.3,3207.9,1.0]
[1762526430606,0.31159443,3209.2,3207.9,1.0]
[1762526431007,0.1133,3209.5,3208.0,0.03117206]
[1762526431256,0.1133,3209.5,3207.9,1.0]
[1762526431553,0.1133,3209.5,3208.0,0.6595]
[1762526431715,3.11610982,3209.2,3208.0,3.77667567]
[1762526432055,0.6112,3209.5,3207.9,1.0]
[1762526432234,0.1388,3210.1,3208.3,0.405504]
[1762526432609,3.11526479,3210.0,3208.4,0.4598]
[1762526432810,0.002,3210.5,3208.4,0.4598]
[1762526432811,0.32532648,3209.9,3208.5,3.11663818]
[1762526433012,3.1153563,3210.0,3208.8,3.11640496]
[1762526433314,3.11488612,3210.4,3208.7,0.405504]
[1762526433625,3.11487665,3210.4,3208.7,0.405504]
[1762526433821,3.11487665,3210.4,3208.8,3.11642981]
[1762526433822,3.11497206,3210.4,3208.8,3.11642981]
[1762526434023,0.002,3210.5,3208.9,3.11633269]
[1762526434348,0.002,3210.5,3208.9,0.405504]
[1762526434349,0.32547669,3210.4,3208.9,0.405504]
[1762526437273,0.002,3212.7,3211.3,0.405504]
[1762526437555,0.002,3212.7,3211.5,0.405504]
[1762526437761,0.002,3212.7,3211.6,0.4976]
[1762526437925,0.002,3212.7,3212.6,3.51824757]
[1762526438129,0.002,3213.0,3212.9,3.51795692]
[1762526438328,0.002,3214.8,3213.5,0.405504]
[1762526438546,0.002,3214.8,3213.2,0.1878]
[1762526438754,0.4916,3214.7,3212.1,0.1878]
[1762526438928,0.4916,3214.7,3212.2,0.405504]
[1762526439131,0.1173,3214.6,3212.4,0.405504]
[1762526439344,0.1173,3214.6,3212.3,0.4598]
[1762526439612,0.4969,3214.5,3212.3,0.4598]
[1762526439824,3.11194841,3213.5,3212.3,0.4598]
[1762526440016,3.11197805,3213.4,3212.3,0.4598]
[1762526440247,1.4471032,3214.4,3212.3,0.4598]
[1762526440568,0.4969,3214.1,3212.2,0.4598]
[1762526440719,0.1873912,3214.4,3212.3,0.43663434]
[1762526440919,3.11145948,3214.0,3212.8,3.11248198]
[1762526441116,1.259712,3214.3,3211.6,0.4598]
[1762526441469,1.259712,3213.9,3211.7,3.11361584]
[1762526441632,0.4969,3214.4,3212.7,3.11263781]
[1762526441962,0.1173,3214.6,3212.7,0.62254732]
[1762526442162,3.10910886,3216.4,3211.7,1.719512]
[1762526442163,3.11042343,3215.0,3212.9,0.405504]
[1762526442347,0.4969,3214.9,3212.8,0.4598]
[1762526442545,3.11039916,3215.1,3212.8,0.4598]
[1762526442546,0.6142,3214.7,3212.8,0.4598]
[1762526442772,3.10986233,3215.6,3212.9,0.405504]
[1762526442917,7.47342797,3217.4,3212.8,0.4598]
[1762526442918,3.11046735,3215.0,3212.8,0.4598]
[1762526443262,0.6142,3214.7,3212.8,0.4598]
[1762526443419,0.1173,3214.7,3212.8,0.4598]
[1762526443623,3.11165277,3213.8,3212.8,0.4598]
[1762526443819,3.11175226,3213.7,3212.8,0.4598]
[1762526444041,6.22238814,3214.2,3211.6,0.1841]
[1762526444239,1.259712,3213.3,3211.6,0.1841]
[1762526444442,3.11419952,3211.1,3210.6,0.4598]
[1762526444672,0.91095908,3214.1,3210.0,0.4598]
[1762526444673,3.11403884,3211.3,3210.0,0.4598]
[1762526444841,1.259712,3212.6,3210.0,0.4598]
[1762526445039,0.6377,3214.0,3210.0,0.4598]
[1762526445040,1.259712,3212.3,3210.0,0.4598]
[1762526445339,1.259712,3212.0,3210.4,3.11479508]
[1762526445558,1.259712,3212.6,3210.0,0.83610569]
[1762526445759,0.4969,3212.8,3210.1,0.4598]
[1762526445974,0.4969,3212.8,3210.2,3.11507071]
[1762526446287,3.11327611,3212.1,3210.7,3.1145004]
[1762526446465,0.31132761,3212.0,3210.8,0.4598]
[1762526446647,1.259712,3213.0,3211.3,3.11392937]
[1762526446850,1.259712,3213.0,3211.0,0.405504]
[1762526446851,0.138,3216.5,3213.8,3.11150951]
[1762526447084,0.138,3216.5,3214.0,1.259712]
[1762526447285,0.1552,3215.0,3214.4,3.26613154]
[1762526447588,0.1572,3215.2,3214.7,3.11071017]
[1762526447890,0.4989,3217.6,3215.1,0.1841]
[1762526448039,0.4989,3217.6,3215.2,0.405504]
[1762526448239,0.4989,3217.6,3215.2,0.4598]
[1762526448440,0.4989,3217.6,3215.3,0.43660529]
[1762526448688,0.4989,3217.6,3215.3,0.405504]
[1762526448871,0.002,3217.6,3215.5,0.405504]
[1762526449073,0.002,3217.6,3216.1,0.405504]
[1762526449273,0.002,3217.6,3216.5,1.665216]
[1762526449447,0.24615582,3217.9,3217.0,0.405504]
[1762526449448,0.14815582,3217.9,3217.0,0.405504]
[1762526449647,0.14815582,3217.9,3217.2,3.10827357]
[1762526449987,0.14815582,3217.9,3217.1,0.4598]
[1762526450174,0.14815582,3217.9,3217.2,1.665216]
[1762526450373,0.14815582,3217.9,3217.4,0.405504]
[1762526450575,0.14815582,3217.9,3217.3,0.4598]
[1762526450884,0.14815582,3217.9,3217.8,3.10771334]
[1762526451085,0.14815582,3217.9,3217.6,3.10782045]
[1762526451284,0.14815582,3217.9,3217.8,3.51321734]
[1762526451666,0.14815582,3217.9,3217.8,0.4598]
[1762526451905,0.14815582,3217.9,3217.8,5.23272934]
[1762526452078,0.002,3218.0,3217.9,3.51312076]
[1762526452284,0.6377,3220.2,3217.9,2.125016]
[1762526452497,0.4969,3220.1,3218.0,0.4598]
[1762526452816,3.10692264,3218.7,3216.1,1.259712]
[1762526453003,1.259712,3220.0,3217.0,3.56826758]
[1762526453004,0.405504,3220.0,3217.0,3.56826758]
[1762526453309,1.259712,3219.2,3217.1,0.03108389]
[1762526453494,3.10702822,3218.6,3216.5,0.4598]
[1762526453804,0.47714813,3219.1,3217.0,0.4598]
[1762526454105,3.6031745,3219.3,3217.5,1.259712]
[1762526454406,3.10693583,3218.7,3217.4,3.10809513]
[1762526454613,3.10693583,3218.7,3217.0,0.4598]
[1762526454614,0.48752638,3218.9,3217.3,1.665216]
[1762526454903,0.48752638,3218.9,3217.3,0.405504]
[1762526455078,0.48752638,3218.9,3217.2,0.4598]
[1762526455279,3.10674785,3218.8,3217.2,0.4598]
[1762526455504,3.10765708,3217.9,3217.2,0.4598]
[1762526455669,3.10762506,3217.9,3216.9,0.1841]
[1762526456009,0.40911742,3218.7,3216.9,0.1841]
[1762526456165,0.4969,3218.8,3217.0,0.4598]
[1762526456510,3.1068432,3218.8,3217.3,3.10817813]
[1762526456709,0.48752638,3218.9,3217.4,0.03108099]
[1762526457007,0.48752638,3218.9,3216.5,0.1841]
[1762526457008,1.259712,3218.7,3216.5,0.1841]
[1762526457309,3.10746851,3218.1,3216.6,0.4598]
[1762526457469,0.1756612,3218.6,3216.6,0.4598]
[1762526457668,3.10756786,3218.0,3216.6,0.4598]
[1762526457991,0.1552,3217.6,3217.0,0.1552]
[1762526458597,0.1552,3217.7,3217.2,0.1552]
[1762526458908,0.1552,3217.7,3217.3,0.4598]
[1762526459335,0.1552,3217.7,3217.2,0.1552]
[1762526459795,3.10811339,3217.4,3216.7,0.4598]
[1762526459992,0.1552,3217.1,3216.5,0.1552]
[1762526460247,0.1552,3216.9,3216.4,0.1552]
[1762526460406,1.259712,3217.7,3216.0,0.4598]
[1762526460595,0.1243,3218.5,3216.0,0.4598]
[1762526460803,0.1243,3218.5,3216.0,3.5692078]
[1762526461038,1.259712,3218.3,3215.5,0.4598]
[1762526461242,1.259712,3218.3,3215.1,0.1841]
[1762526461243,0.405504,3218.0,3215.1,0.1841]
[1762526461395,1.259712,3217.0,3214.9,0.4598]
[1762526461594,3.10887914,3216.6,3215.4,3.10996336]
[1762526461793,3.10753607,3218.0,3214.9,0.4598]
[1762526461794,0.002,3218.0,3215.6,0.405504]
[1762526462034,0.002,3218.0,3216.9,0.001]
[1762526462446,3.10848616,3217.0,3216.9,0.001]
[1762526462934,3.60538616,3217.0,3216.9,0.001]
[1762526463120,5.53647428,3217.0,3216.9,0.001]
[1762526463326,0.67137612,3217.0,3216.9,0.001]
[1762526463495,0.002,3218.4,3216.9,0.001]
[1762526463896,3.10745419,3218.1,3216.9,0.001]
[1762526464197,3.10771334,3217.8,3216.9,0.001]
[1762526464538,3.10962457,3215.9,3214.3,3.29516885]
[1762526464835,1.259712,3217.4,3214.9,0.49640516]
[1762526465047,0.405504,3217.7,3215.0,0.37911112]
[1762526465339,0.4535,3217.3,3214.9,0.870804]
[1762526465635,0.4535,3217.3,3215.1,3.1103191]
[1762526465841,0.4535,3217.3,3215.2,0.4653]
[1762526466047,3.10829292,3217.2,3215.2,0.4653]
[1762526466203,3.10916341,3216.3,3215.2,0.4653]
[1762526466402,3.10942117,3216.1,3215.2,0.4653]
[1762526466670,0.31091634,3216.2,3214.8,0.1841]
[1762526466976,0.4535,3216.9,3214.9,0.4653]
[1762526467181,0.4535,3218.2,3215.0,0.72786423]
[1762526467331,0.4535,3217.9,3214.9,0.4653]
[1762526467536,3.10780992,3217.7,3215.3,0.405504]
[1762526467891,3.10820672,3217.3,3215.6,3.10983953]
[1762526468067,3.10956903,3218.0,3215.9,1.259712]
[1762526468068,0.002,3218.0,3215.9,1.259712]
[1762526468267,1.259712,3217.8,3215.6,3.10974406]
[1762526468470,3.10812132,3217.4,3216.1,3.10933134]
[1762526468632,3.10877737,3216.7,3215.4,0.4653]
[1762526468830,0.4535,3217.6,3215.6,3.10976024]
[1762526469035,3.1080997,3217.4,3215.5,3.10992968]
[1762526469356,0.31080997,3217.3,3215.4,0.4653]
[1762526469560,0.405504,3217.5,3215.4,0.4653]
[1762526469871,3.10858724,3216.9,3215.5,0.4653]
[1762526470057,0.002,3218.0,3216.4,3.10904422]
[1762526470382,0.4535,3217.9,3216.0,3.10940846]
[1762526470576,0.4535,3217.9,3215.5,0.4653]
[1762526470577,0.1552,3216.4,3215.8,0.1552]
[1762526470863,1.259712,3217.8,3216.2,3.10916431]
[1762526471066,0.1713212,3217.7,3216.4,3.10906603]
[1762526471372,3.10790651,3217.6,3215.2,0.4653]
[1762526471556,3.10867943,3216.8,3214.5,3.57619783]
[1762526471866,1.851212,3216.7,3214.5,0.4653]
[1762526472073,0.405504,3216.1,3213.9,0.4653]
[1762526472231,0.405504,3216.1,3213.7,0.1942]
[1762526472232,1.665216,3216.1,3213.7,0.1942]
[1762526472431,0.93094754,3216.0,3213.8,0.49641581]
[1762526472669,0.93094754,3216.0,3213.8,0.4653]
[1762526472907,0.4535,3215.9,3213.8,0.4653]
[1762526473042,0.4535,3215.9,3213.7,0.1942]
[1762526473043,0.405504,3215.7,3213.7,0.1942]
[1762526473369,3.11013445,3215.3,3213.8,0.4653]
[1762526473683,3.11041177,3215.1,3214.0,3.11135689]
[1762526473973,1.259712,3215.5,3213.8,3.57686471]
[1762526474236,1.259712,3215.5,3213.7,0.1942]
[1762526474237,0.43695515,3215.4,3213.7,0.1942]
[1762526474390,0.4535,3215.6,3213.8,0.49641581]
[1762526474557,0.4535,3215.6,3214.0,3.1113453]
[1762526474758,3.10974031,3215.8,3214.6,3.11078563]
[1762526475094,3.10974031,3215.8,3213.6,1.259712]
[1762526475095,0.4535,3215.7,3214.3,0.4653]
[1762526475244,0.4535,3216.6,3214.7,0.405504]
[1762526475444,0.002,3218.4,3214.9,0.405504]
[1762526475445,0.4535,3217.3,3214.9,0.405504]
[1762526475772,0.002,3218.4,3214.8,3.14171954]
[1762526475773,3.10830816,3217.2,3215.4,0.405504]
[1762526475975,3.10958567,3218.0,3215.0,0.35472235]
[1762526475976,0.4535,3217.0,3215.0,0.35472235]
[1762526476180,0.4535,3217.0,3214.9,0.4653]
[1762526476372,1.259712,3216.8,3214.9,0.4653]
[1762526476547,3.10940067,3216.1,3214.9,0.4653]
[1762526476884,0.48783773,3217.1,3215.3,3.11012969]
[1762526477086,0.48783773,3217.1,3215.0,0.405504]
[1762526477291,0.48783773,3217.1,3215.3,3.11012835]
[1762526477292,0.4535,3217.0,3215.3,3.11012835]
[1762526477445,0.4535,3217.0,3215.3,0.405504]
[1762526477645,0.4535,3217.0,3214.5,0.4653]
[1762526477846,0.405504,3216.7,3214.1,0.4653]
[1762526478067,1.259712,3216.4,3214.1,0.4653]
[1762526478272,1.713212,3216.6,3214.1,0.4653]
[1762526478607,0.4535,3216.6,3214.1,0.4653]
[1762526478809,3.10932205,3216.2,3214.5,0.405504]
[1762526478992,0.3109322,3216.2,3214.4,3.5164923]
[1762526479313,3.10896937,3216.5,3215.1,3.11029287]
[1762526479518,1.259712,3216.9,3215.3,0.405504]
[1762526479519,0.002,3216.9,3215.3,0.405504]
[1762526479687,3.10905846,3216.5,3214.8,0.405504]
[1762526479897,0.002,3216.9,3214.8,0.405504]
[1762526480219,1.259712,3216.6,3214.3,1.259712]
[1762526480385,3.11012808,3215.4,3214.2,0.4653]
[1762526480716,1.259712,3216.1,3214.5,3.11088258]
[1762526480872,1.259712,3216.1,3214.2,0.4653]
[1762526480873,1.259712,3216.0,3214.2,0.4653]
[1762526481071,0.4535,3216.3,3214.3,3.11109275]
[1762526481275,0.31304483,3216.9,3215.2,3.11022159]
[1762526481486,0.002,3216.9,3215.7,3.1097373]
[1762526481733,0.002,3216.9,3215.0,0.405504]
[1762526481886,0.002,3216.9,3215.3,0.405504]
[1762526482086,0.002,3216.9,3215.5,0.405504]
[1762526482307,0.002,3216.9,3215.4,0.4653]
[1762526482518,3.11059687,3216.9,3215.8,3.10958432]
[1762526482684,0.31105969,3216.8,3215.4,0.4653]
[1762526483012,3.10891715,3216.6,3215.4,0.4653]
[1762526483216,0.002,3216.9,3214.9,0.4653]
[1762526483217,3.10945633,3216.0,3214.9,0.4653]
[1762526483387,3.10945633,3216.0,3214.3,3.11105424]
[1762526483388,0.4535,3216.0,3214.3,0.4653]
[1762526483715,0.4535,3215.9,3214.0,0.001]
[1762526483921,3.11062042,3214.8,3214.0,0.001]
[1762526484077,0.31106204,3214.8,3214.0,0.001]
[1762526484272,0.4535,3215.4,3214.0,0.001]
[1762526484614,1.259712,3215.2,3214.0,0.001]
[1762526484775,0.4535,3215.9,3214.0,0.001]
[1762526485114,0.4535,3216.8,3214.1,0.4653]
[1762526485268,3.10960575,3215.9,3214.8,3.11054546]
[1762526485478,0.4535,3216.8,3214.9,0.03110516]
[1762526485684,0.4535,3216.8,3215.0,0.4653]
[1762526485884,3.10907097,3216.4,3215.2,3.11022642]
[1762526486119,3.10942166,3216.1,3215.0,0.4653]
[1762526486322,0.4535,3216.8,3215.0,0.4653]
[1762526486530,0.002,3216.9,3215.5,0.405504]
[1762526486689,0.002,3216.9,3215.1,0.03110323]
[1762526486690,0.002,3216.9,3215.9,1.259712]
[1762526487020,0.002,3216.9,3215.2,3.11016091]
[1762526487021,3.10867943,3216.8,3215.2,0.4653]
[1762526487221,0.002,3216.9,3215.6,3.10974559]
[1762526487222,3.41985756,3216.7,3215.6,3.10974559]
[1762526487426,0.31106794,3216.7,3215.3,0.4653]
[1762526487732,0.31106794,3216.7,3214.4,0.4653]
[1762526487733,1.259712,3216.4,3214.4,0.4653]
[1762526487906,0.4535,3216.6,3214.4,0.4653]
[1762526488424,3.10896937,3216.5,3214.4,0.4653]
[1762526488580,0.35624694,3216.4,3214.4,0.9683353]
[1762526488785,0.4535,3216.6,3214.5,0.4653]
[1762526489029,1.259712,3216.1,3214.0,0.001]
[1762526489196,0.405504,3215.8,3214.0,0.001]
[1762526489527,3.1108798,3214.6,3214.0,0.001]
[1762526489700,1.259712,3215.2,3214.0,0.001]
[1762526489898,3.11129087,3214.1,3214.0,0.001]
[1762526490112,0.4535,3215.1,3214.0,0.001]
[1762526490325,3.11008763,3215.4,3214.0,0.001]
[1762526490530,6.10922803,3217.0,3214.0,0.001]
[1762526490731,0.4535,3216.0,3214.0,0.001]
[1762526490900,1.259712,3215.5,3214.0,0.001]
[1762526491101,0.89045515,3215.4,3214.0,0.001]
[1762526491301,1.259712,3215.1,3214.0,0.001]
[1762526491504,3.11129087,3214.1,3214.0,0.001]
[1762526491704,0.4535,3215.0,3214.0,0.001]
[1762526491902,0.1552,3214.1,3214.0,0.001]
[1762526492105,0.43695515,3215.4,3214.0,0.001]
[1762526492310,0.4535,3216.2,3214.0,0.4663]
[1762526492509,0.4535,3216.2,3214.2,1.259712]
[1762526492692,0.4535,3216.2,3214.5,3.1108957]
[1762526492908,0.4535,3216.2,3214.1,0.405504]
[1762526493124,3.10887272,3216.6,3214.9,3.11051599]
[1762526493463,3.10887272,3216.6,3214.3,3.11109728]
[1762526493464,3.10964612,3215.8,3214.3,0.405504]
[1762526493762,0.405504,3215.5,3214.0,0.001]
[1762526493908,3.11071873,3214.7,3214.0,0.001]
[1762526494104,3.11096518,3214.5,3214.0,0.001]
[1762526494354,1.259712,3215.1,3214.0,0.001]
[1762526494519,1.259712,3214.3,3214.0,0.001]
[1762526494723,1.259712,3214.8,3214.0,0.001]
[1762526494922,1.259712,3214.9,3214.0,0.001]
[1762526495244,0.43701469,3214.9,3214.0,0.001]
[1762526495425,4.37024988,3214.9,3214.0,0.001]
[1762526495610,3.11063059,3214.8,3214.0,0.001]
[1762526495810,1.259712,3215.3,3214.0,0.001]
[1762526496320,0.4938,3216.0,3214.0,0.4902]
[1762526496522,1.259712,3215.1,3214.0,0.4902]
[1762526496758,0.4938,3216.0,3214.0,0.4902]
[1762526496759,1.259712,3215.7,3214.0,0.8503764]
[1762526496930,4.41920287,3214.1,3214.0,0.001]
[1762526497313,4.91300287,3214.1,3214.0,0.001]
[1762526497509,1.259712,3214.1,3214.0,0.001]
[1762526497714,1.753512,3214.1,3214.0,0.001]
[1762526498011,4.54635407,3214.1,3214.0,0.001]
[1762526498228,1.259712,3214.1,3214.0,0.001]
[1762526498429,4.37100287,3214.1,3214.0,0.001]
[1762526498646,4.86480287,3214.1,3214.0,0.001]
[1762526498814,4.37100287,3214.1,3214.0,0.001]
[1762526499555,1.259712,3214.1,3214.0,0.001]
[1762526500048,4.37100287,3214.1,3214.0,0.001]
[1762526500454,1.259712,3214.1,3214.0,0.001]
[1762526500624,4.37100287,3214.1,3214.0,0.001]
[1762526501135,3.11012969,3215.3,3214.0,0.4919]
[1762526501356,0.98715249,3215.7,3214.0,0.4919]
[1762526501357,0.48825249,3215.7,3214.1,0.36033829]
[1762526501558,0.48825249,3215.7,3214.0,0.4919]
[1762526501726,3.11086208,3214.6,3214.0,0.001]
[1762526501930,3.11097736,3214.5,3214.0,0.001]
[1762526502132,0.1552,3214.1,3214.0,0.001]
[1762526502463,3.11129087,3214.1,3214.0,0.001]
[1762526502818,3.73353795,3214.1,3214.0,0.001]
[1762526503013,1.88195908,3214.1,3214.0,0.001]
[1762526503219,3.11129087,3214.1,3214.0,0.001]
[1762526503659,0.4989,3214.9,3214.0,0.001]
[1762526503827,0.4989,3215.5,3214.0,0.001]
[1762526504026,0.4989,3215.4,3214.0,0.001]
[1762526504260,3.11011379,3215.4,3214.1,3.60212569]
[1762526504426,0.4989,3216.0,3214.2,0.85121257]
[1762526504628,1.259712,3215.6,3214.3,0.52201097]
[1762526504863,3.1095722,3218.0,3214.3,0.52201097]
[1762526504864,0.4989,3216.7,3214.3,0.4909]
[1762526505019,3.10926604,3216.2,3215.0,3.1103475]
[1762526505214,3.10926604,3216.2,3214.4,6.10922803]
[1762526505215,3.10850305,3217.0,3215.7,3.10972877]
[1762526505415,0.5467,3217.2,3215.4,3.10997213]
[1762526505644,0.5467,3217.2,3215.5,3.10993624]
[1762526505843,0.0478,3217.2,3215.6,0.4909]
[1762526506256,4.36827256,3217.0,3215.6,0.4909]
[1762526506458,3.10913946,3216.4,3215.6,0.4909]
[1762526506616,3.10878088,3216.7,3215.6,0.4909]
[1762526506816,0.0478,3217.2,3215.6,0.4909]
[1762526507017,0.0478,3217.2,3215.7,0.03109742]
[1762526507323,0.0478,3217.2,3215.6,0.4909]
[1762526507324,3.10897984,3216.5,3215.6,0.4909]
[1762526507545,0.002,3217.3,3215.7,0.03109742]
[1762526507859,0.002,3217.3,3215.9,0.405504]
[1762526508076,1.259712,3217.1,3215.9,3.10947444]
[1762526508280,0.002,3217.3,3216.0,0.4909]
[1762526508779,0.002,3217.3,3216.2,0.405504]
[1762526508982,0.002,3217.3,3216.7,0.405504]
[1762526509282,0.002,3217.3,3216.2,0.405504]
[1762526509486,0.002,3217.3,3217.2,3.10829292]
[1762526509787,0.002,3218.0,3217.5,3.1080031]
[1762526509983,0.002,3218.0,3217.9,3.10761676]
[1762526510145,0.002,3218.7,3218.3,3.10723052]
[1762526510345,0.002,3218.7,3217.6,7.36894003]
[1762526510346,0.002,3218.7,3218.0,1.750612]
[1762526510547,0.002,3218.7,3217.7,1.750612]
[1762526510866,0.002,3218.7,3218.3,3.51273452]
[1762526511043,0.002,3218.7,3218.3,4.00363452]
[1762526511244,0.002,3218.7,3218.6,3.5124449]
[1762526511483,0.002,3218.7,3218.6,4.7721569]
[1762526511685,0.002,3218.7,3218.6,5.2630569]
[1762526511895,0.002,3218.7,3218.6,3.5978409]
[1762526512073,0.1425,3220.7,3218.6,3.5978409]
[1762526512074,0.1425,3220.7,3219.1,3.10642172]
[1762526512391,0.138,3222.0,3220.6,3.1050018]
[1762526512594,0.1552,3221.2,3220.7,0.03104915]
[1762526512802,0.002,3222.3,3220.7,0.4909]
[1762526513096,0.002,3222.3,3221.2,0.405504]
[1762526513303,0.002,3222.3,3221.7,0.405504]
[1762526513454,0.002,3222.3,3221.9,3.10367606]
[1762526513653,0.002,3222.3,3221.8,0.4909]
[1762526514069,0.002,3222.3,3222.2,3.50897367]